bitfinex-derivatives/quotes_BNBF0:USTF0_20250904
["timestamp","ask_amount","ask_price","bid_price","bid_amount"]
[1756955079381,0.2042835,852.42,850.97,1.31677054]
[1756955079678,0.2042835,852.42,850.79,0.79155609]
[1756955079679,0.2042835,852.42,850.98,1.31677054]
[1756955079881,0.2042835,852.42,850.99,1.31677054]
[1756955080177,0.2042835,852.42,851.0,1.31677054]
[1756955080381,0.2042835,852.42,851.01,1.31677054]
[1756955080579,0.2042835,852.42,851.02,1.31677054]
[1756955080781,0.2042835,852.42,851.03,1.31677054]
[1756955080980,0.2042835,852.42,851.04,1.31677054]
[1756955081181,0.2042835,852.42,851.05,1.31677054]
[1756955081380,0.2042835,852.42,851.06,1.31677054]
[1756955081578,0.2042835,852.42,851.07,1.31677054]
[1756955081782,0.2042835,852.42,851.08,1.31677054]
[1756955081984,0.2042835,852.42,851.09,1.31677054]
[1756955082280,0.2042835,852.42,851.1,1.31677054]
[1756955082483,0.2042835,852.42,851.11,1.31677054]
[1756955082683,0.2042835,852.42,851.12,1.31677054]
[1756955082882,0.2042835,852.42,851.13,1.31677054]
[1756955083080,0.2042835,852.42,851.14,1.31677054]
[1756955083380,0.2042835,852.42,851.15,1.31677054]
[1756955083581,0.2042835,852.42,851.16,1.31677054]
[1756955083780,0.2042835,852.42,851.17,1.31677054]
[1756955083985,0.2042835,852.42,851.18,1.31677054]
[1756955084184,0.2042835,852.42,851.19,0.58755461]
[1756955084381,0.2042835,852.42,851.2,0.58755461]
[1756955084580,0.2042835,852.42,851.21,0.58755461]
[1756955084782,0.2042835,852.42,851.22,0.58755461]
[1756955084982,0.2042835,852.42,851.23,0.58755461]
[1756955085181,0.2042835,852.42,851.24,0.58755461]
[1756955085384,0.2042835,852.42,851.25,0.58755461]
[1756955085586,0.2042835,852.42,851.26,0.58755461]
[1756955085883,0.2042835,852.42,851.27,0.58755461]
[1756955086086,0.2042835,852.42,851.28,0.58755461]
[1756955086283,0.2042835,852.42,850.86,0.79213297]
[1756955086488,0.2042835,852.42,850.87,1.31716126]
[1756955086684,0.2042835,852.42,850.88,1.31716126]
[1756955086883,0.2042835,852.42,850.89,1.31716126]
[1756955087086,0.2042835,852.42,850.9,1.31716126]
[1756955087389,0.2042835,852.42,850.91,1.31716126]
[1756955087688,0.2042835,852.42,850.92,1.31716126]
[1756955087889,0.2042835,852.42,850.93,1.31716126]
[1756955088089,0.2042835,852.42,850.87,0.79213297]
[1756955088090,0.2042835,852.42,850.94,1.31716126]
[1756955088290,0.2042835,852.42,850.95,1.31716126]
[1756955088590,0.2042835,852.42,850.96,1.31716126]
[1756955088792,0.2042835,852.42,850.97,1.31716126]
[1756955088988,0.2042835,852.42,850.98,1.31716126]
[1756955089186,0.2042835,852.42,850.99,1.31716126]
[1756955089392,0.2042835,852.42,851.0,1.31716126]
[1756955089688,0.2042835,852.42,851.01,1.31716126]
[1756955089892,0.2042835,852.42,851.02,1.31716126]
[1756955090089,0.2042835,852.42,851.03,1.31716126]
[1756955090288,0.2042835,852.42,851.04,1.31716126]
[1756955090592,0.2042835,852.42,851.05,1.31716126]
[1756955090793,0.2042835,852.42,851.06,1.31716126]
[1756955090989,0.2042835,852.42,851.07,1.31716126]
[1756955091188,0.2042835,852.42,851.08,1.31716126]
[1756955091389,0.2042835,852.42,851.09,1.31716126]
[1756955091692,0.2042835,852.42,851.1,1.31716126]
[1756955091890,0.2042835,852.42,851.11,1.31716126]
[1756955092090,0.2042835,852.42,851.12,1.31716126]
[1756955092294,0.2042835,852.42,851.13,1.31716126]
[1756955092593,0.2042835,852.42,851.14,1.31716126]
[1756955092792,0.2042835,852.42,851.15,1.31716126]
[1756955092990,0.2042835,852.42,851.16,1.31716126]
[1756955093289,0.2042835,852.42,851.17,1.31716126]
[1756955093490,0.2042835,852.42,851.18,1.31716126]
[1756955093694,0.2042835,852.42,851.19,1.31716126]
[1756955093893,0.2042835,852.42,851.2,1.31716126]
[1756955094092,0.2042835,852.42,851.21,0.58755418]
[1756955094399,0.2042835,852.42,851.22,0.58755418]
[1756955094595,0.2042835,852.42,851.23,0.58755418]
[1756955094796,0.2042835,852.42,851.24,0.58755482]
[1756955095094,0.2042835,852.42,851.25,0.58755482]
[1756955095293,0.2042835,852.42,851.26,0.58755482]
[1756955095495,0.2042835,852.42,851.27,0.58755482]
[1756955095697,0.2042835,852.42,851.28,0.58755482]
[1756955095891,0.2042835,852.42,850.86,0.79213297]
[1756955096096,0.2042835,852.42,850.87,1.31680998]
[1756955096398,0.2042835,852.42,850.88,1.31680998]
[1756955096599,0.2042835,852.42,850.89,1.31680998]
[1756955096799,0.2042835,852.42,850.9,1.31680998]
[1756955097099,0.2042835,852.42,850.91,1.31680998]
[1756955097296,0.2042835,852.42,850.92,1.31680998]
[1756955097498,0.2042835,852.42,850.93,1.31680998]
[1756955097698,0.2042835,852.42,850.94,1.31680998]
[1756955097995,0.2042835,852.42,850.95,1.31680998]
[1756955098300,0.2042835,852.42,850.96,1.31680998]
[1756955098497,0.2042835,852.42,850.97,1.31680998]
[1756955098798,0.2042835,852.42,850.98,1.31680998]
[1756955098995,0.2042835,852.42,850.99,1.31680998]
[1756955099200,0.2042835,852.42,851.0,1.31680998]
[1756955099396,0.2042835,852.42,851.01,1.31680998]
[1756955099596,0.2042835,852.42,851.02,1.31680998]
[1756955099801,0.2042835,852.42,851.03,1.31680998]
[1756955099997,0.2042835,852.42,851.04,1.31680998]
[1756955100196,0.2042835,852.42,851.05,1.31680998]
[1756955100407,0.2042835,852.42,850.68,0.79213297]
[1756955100408,0.2042835,852.42,851.06,1.31680998]
[1756955100607,0.2042835,852.42,851.07,0.58757215]
[1756955100805,0.2042835,852.42,851.08,1.31678844]
[1756955101105,0.2042835,852.42,851.09,1.31678844]
[1756955101304,0.2042835,852.42,851.1,1.31678844]
[1756955101508,0.2042835,852.42,851.11,1.31678844]
[1756955101709,0.2042835,852.42,851.12,1.31678844]
[1756955102004,0.2042835,852.42,850.46,1.0501474]
[1756955102005,0.2042835,852.42,851.13,0.58757215]
[1756955102210,0.2042835,852.42,850.69,0.79225952]
[1756955102405,0.2042835,852.42,850.7,1.31682167]
[1756955102606,0.2042835,852.42,850.71,1.31682167]
[1756955102905,0.2042835,852.42,850.72,1.31682167]
[1756955103108,0.2042835,852.42,850.73,1.31682167]
[1756955103404,0.2042835,852.42,850.74,1.31682167]
[1756955103610,0.2042835,852.42,850.75,1.31682167]
[1756955103904,0.2042835,852.42,850.76,1.31682167]
[1756955104108,0.2042835,852.42,850.77,1.31682167]
[1756955104304,0.2042835,852.42,850.78,1.31682167]
[1756955104505,0.2042835,852.42,850.79,1.31682167]
[1756955104709,0.2042835,852.42,850.8,1.31682167]
[1756955104906,0.2042835,852.42,850.81,1.31682167]
[1756955105110,0.2042835,852.42,850.82,1.31682167]
[1756955105410,0.2042835,852.42,850.83,1.31682167]
[1756955105706,0.2042835,852.42,850.84,1.31682167]
[1756955105908,0.2042835,852.42,850.85,1.31682167]
[1756955106210,0.2042835,852.42,850.86,1.31682167]
[1756955106411,0.2042835,852.42,850.87,1.31682167]
[1756955106609,0.2042835,852.42,850.88,1.31682167]
[1756955106808,0.2042835,852.42,850.89,1.31682167]
[1756955107011,0.2042835,852.42,850.9,1.31682167]
[1756955107310,0.2042835,852.42,850.91,1.31682167]
[1756955107612,0.2042835,852.42,850.92,1.31682183]
[1756955107911,2.620247,852.36,850.93,1.31682183]
[1756955108109,2.620247,852.36,850.94,1.31682183]
[1756955108308,2.620247,852.36,850.95,1.31682183]
[1756955108508,2.620247,852.33,850.96,1.31682183]
[1756955108708,2.620247,852.33,850.97,1.31682183]
[1756955108912,2.620247,852.34,850.98,1.31682183]
[1756955109112,2.620247,852.34,850.99,1.31682183]
[1756955109313,2.620247,852.34,851.0,1.31682183]
[1756955109513,2.620247,852.34,851.01,1.31682183]
[1756955109812,2.620247,852.34,850.76,0.79225952]
[1756955109813,2.620247,852.34,851.02,1.31682183]
[1756955110010,2.620247,852.33,851.03,1.31682183]
[1756955110210,2.620247,852.33,851.04,1.31682183]
[1756955110409,2.620247,852.34,851.05,1.31682183]
[1756955110612,2.620247,852.34,851.06,0.58762863]
[1756955110810,2.620247,852.34,851.07,0.58762863]
[1756955111011,2.620247,852.32,851.08,0.58762863]
[1756955111213,2.620247,852.32,851.09,0.58762863]
[1756955111414,2.620247,852.32,851.1,0.58762863]
[1756955111714,2.620247,852.33,851.11,0.58762863]
[1756955111915,2.620247,852.33,851.12,0.58762863]
[1756955112115,2.620247,852.34,851.13,0.58762863]
[1756955112312,2.620247,852.34,851.14,0.58762863]
[1756955112515,2.620247,852.34,851.15,0.58762863]
[1756955112811,2.620247,852.34,850.78,0.79225952]
[1756955113016,2.620247,852.34,850.79,1.31661771]
[1756955113210,2.620247,852.34,850.8,1.31661771]
[1756955113414,2.620247,852.34,850.81,1.31661771]
[1756955113611,2.620247,852.35,850.82,1.31661771]
[1756955113813,2.620247,852.35,850.83,1.31661771]
[1756955114016,2.620247,852.35,850.84,1.31661771]
[1756955114212,2.620247,852.35,850.85,1.31661771]
[1756955114415,2.620247,852.35,850.86,1.31661771]
[1756955114614,2.620247,852.35,850.87,1.31661771]
[1756955114814,2.620247,852.35,850.88,1.31661771]
[1756955115017,2.620247,852.35,850.89,1.31661771]
[1756955115215,2.620247,852.35,850.9,1.31661771]
[1756955115417,2.620247,852.35,850.91,1.31661771]
[1756955115619,2.620247,852.4,850.92,1.31661771]
[1756955115816,2.620247,852.4,850.93,1.31661771]
[1756955116120,2.8245305,852.42,850.94,1.31661771]
[1756955116417,2.8245305,852.42,850.95,1.31661771]
[1756955116715,2.620247,852.33,850.96,1.31661771]
[1756955116914,2.620247,852.33,850.97,1.31661771]
[1756955117119,2.620247,852.33,850.98,1.31661771]
[1756955117317,0.2042835,852.42,850.99,1.31661771]
[1756955117516,0.2042835,852.42,851.0,1.31661771]
[1756955117819,0.2042835,852.42,851.01,1.31661771]
[1756955118020,0.2042835,852.42,851.02,1.31661771]
[1756955118317,0.2042835,852.42,851.03,1.31661771]
[1756955118519,0.2042835,852.42,851.04,1.31661771]
[1756955118718,0.2042835,852.42,851.05,1.31661771]
[1756955118917,0.2042835,852.42,851.06,1.31661771]
[1756955119220,0.2042835,852.42,851.07,0.5876289]
[1756955119419,0.2042835,852.42,851.08,0.5876289]
[1756955119616,0.2042835,852.42,851.09,0.5876289]
[1756955119817,0.2042835,852.42,851.1,0.5876289]
[1756955120017,0.2042835,852.42,851.11,0.5876289]
[1756955120218,0.2042835,852.42,851.12,0.5876289]
[1756955120416,0.2042835,852.42,851.13,0.5876289]
[1756955120620,0.2042835,852.42,851.14,0.5876289]
[1756955120818,0.2042835,852.42,851.15,0.5876289]
[1756955121018,0.2042835,852.42,850.75,0.79225952]
[1756955121315,0.2042835,852.42,850.76,1.31533313]
[1756955121520,2.620247,852.36,850.77,1.31533313]
[1756955121720,2.620247,852.36,850.78,1.31533313]
[1756955121921,0.2042835,852.42,850.79,1.31533313]
[1756955122120,0.2042835,852.42,850.8,1.31533313]
[1756955122319,0.2042835,852.42,850.81,1.31533313]
[1756955122519,0.2042835,852.42,850.64,0.79225952]
[1756955122520,0.2042835,852.42,850.82,1.31533313]
[1756955122721,0.2042835,852.42,850.83,1.31533313]
[1756955122917,0.2042835,852.42,850.84,1.31533313]
[1756955123120,0.2042835,852.42,850.85,1.31533313]
[1756955123321,0.2042835,852.42,850.86,1.31533313]
[1756955123524,0.2042835,852.42,850.87,1.31533313]
[1756955123719,0.2042835,852.42,850.88,1.31533313]
[1756955123918,0.2042835,852.42,850.89,1.31533313]
[1756955124223,0.2042835,852.42,850.9,1.31533313]
[1756955124519,0.2042835,852.42,850.26,1.5752211]
[1756955124520,0.2042835,852.42,850.91,1.31533313]
[1756955124719,0.2042835,852.42,850.92,1.31533313]
[1756955124922,0.2042835,852.42,850.93,1.31533313]
[1756955125219,0.2042835,852.42,850.94,1.31533313]
[1756955125419,0.2042835,852.42,850.95,1.31533313]
[1756955125621,0.2042835,852.42,850.96,0.58762906]
[1756955125819,0.2042835,852.42,850.97,0.58762906]
[1756955126024,2.620247,852.08,850.98,0.58762906]
[1756955126224,2.620247,852.08,850.99,0.58762906]
[1756955126525,2.620247,852.09,851.0,0.58762906]
[1756955126725,2.620247,852.09,851.01,0.58762906]
[1756955126921,2.620247,852.09,851.02,0.58762906]
[1756955127124,2.620247,852.08,851.03,0.58762906]
[1756955127328,2.620247,852.08,850.67,0.79225952]
[1756955127329,2.620247,852.08,851.04,0.58762906]
[1756955127530,2.620247,852.09,851.05,0.58762906]
[1756955127729,2.620247,852.09,851.06,0.58762906]
[1756955128028,2.620247,852.09,851.07,0.58762906]
[1756955128329,2.620247,852.1,851.08,0.58762906]
[1756955128526,2.620247,852.1,851.09,0.58762906]
[1756955128824,0.2042835,852.42,851.1,0.58762906]
[1756955129130,0.2042835,852.42,851.11,0.58762906]
[1756955129329,0.2042835,852.42,851.12,0.58762906]
[1756955129624,0.2042835,852.42,851.13,0.58762906]
[1756955129828,0.2042835,852.42,850.59,0.79180145]
[1756955130028,0.2042835,852.42,850.6,1.31528823]
[1756955130228,0.2042835,852.42,850.61,1.31528823]
[1756955130428,0.2042835,852.42,850.62,1.31528823]
[1756955130730,0.2042835,852.42,850.63,1.31528823]
[1756955130930,0.2042835,852.42,850.64,1.31528823]
[1756955131229,0.2042835,852.42,850.65,1.31528823]
[1756955131528,0.2042835,852.42,850.66,1.31528823]
[1756955131724,0.2042835,852.42,850.67,1.31528823]
[1756955132027,0.2042835,852.42,850.68,1.31528823]
[1756955132226,0.2042835,852.42,850.69,1.31528823]
[1756955132529,0.2042835,852.42,850.7,1.31528823]
[1756955132731,0.2042835,852.42,850.71,1.31528823]
[1756955132925,2.620247,852.03,850.72,1.31528823]
[1756955133125,2.620247,852.03,850.73,1.31528823]
[1756955133325,2.620247,851.98,850.74,0.58765247]
[1756955133525,2.620247,851.98,850.75,0.58765247]
[1756955133728,2.620247,851.98,850.76,0.58765247]
[1756955133925,2.620247,852.05,850.77,0.58765247]
[1756955134230,2.620247,852.05,850.78,0.58765247]
[1756955134529,2.620247,852.07,850.79,0.58765247]
[1756955134729,2.620247,852.07,850.8,0.58765247]
[1756955135029,2.620247,852.2,850.81,0.58781257]
[1756955135228,2.620247,852.2,850.82,0.58781257]
[1756955135426,2.620247,852.3,850.4,0.79180145]
[1756955135624,2.620247,852.3,850.41,1.31458877]
[1756955135925,2.620247,852.3,850.42,1.31458877]
[1756955136129,0.2042835,852.42,850.43,1.31458877]
[1756955136426,0.2042835,852.42,850.44,1.31458877]
[1756955136626,0.2042835,852.42,850.45,1.31458877]
[1756955136830,0.2042835,852.42,850.46,1.31458877]
[1756955137127,0.2042835,852.42,850.47,1.31458877]
[1756955137426,0.2042835,852.42,850.48,1.31458877]
[1756955137626,0.2042835,852.42,850.49,1.31458877]
[1756955137830,0.2042835,852.42,850.5,1.31458877]
[1756955138028,0.2042835,852.42,850.51,1.31458877]
[1756955138227,0.2042835,852.42,850.52,1.31458877]
[1756955138426,0.2042835,852.42,850.53,1.31458877]
[1756955138626,0.2042835,852.42,850.54,1.31458877]
[1756955138926,0.2042835,852.42,850.55,1.31458877]
[1756955139231,0.2042835,852.42,850.56,1.31458877]
[1756955139427,0.2042835,852.42,850.57,1.31458877]
[1756955139630,0.2042835,852.42,850.58,1.31458877]
[1756955139826,0.2042835,852.42,850.59,1.31458877]
[1756955140031,0.2042835,852.42,850.6,1.31458877]
[1756955140231,0.2042835,852.42,850.61,1.31458877]
[1756955140432,0.2042835,852.42,850.62,1.31458877]
[1756955140628,0.2042835,852.42,850.63,1.31458877]
[1756955140827,0.2042835,852.42,850.64,1.31458877]
[1756955141032,0.2042835,852.42,850.65,1.31458877]
[1756955141230,0.2042835,852.42,850.08,0.20436867]
[1756955141231,0.2042835,852.42,850.66,1.31458877]
[1756955141530,0.2042835,852.42,850.67,1.31458877]
[1756955141733,0.2042835,852.42,850.68,1.31458877]
[1756955141934,0.2042835,852.42,850.69,1.31449029]
[1756955142130,0.2042835,852.42,850.7,1.31449029]
[1756955142334,0.2042835,852.42,850.71,1.31449029]
[1756955142633,0.2042835,852.42,850.72,1.31449029]
[1756955142831,0.2042835,852.42,850.73,1.31449029]
[1756955143034,0.2042835,852.42,850.74,1.31449029]
[1756955143333,0.2042835,852.42,850.75,1.31449029]
[1756955143534,0.2042835,852.42,850.76,1.31449029]
[1756955143830,0.2042835,852.42,850.77,1.31449029]
[1756955144029,0.2042835,852.42,850.78,1.31449029]
[1756955144232,0.2042835,852.42,850.79,1.31449029]
[1756955144432,0.2042835,852.42,850.8,1.31449029]
[1756955144730,0.2042835,852.42,850.81,1.31449029]
[1756955144934,0.2042835,852.42,850.82,1.31449029]
[1756955145132,0.2042835,852.42,850.83,1.31449029]
[1756955145336,0.2042835,852.42,850.84,1.31449029]
[1756955145633,0.2042835,852.42,850.85,1.31449029]
[1756955145836,0.2042835,852.42,850.86,1.31449029]
[1756955146035,0.2042835,852.42,850.87,1.31449029]
[1756955146233,0.2042835,852.42,850.88,1.31387926]
[1756955146438,0.2042835,852.42,850.89,0.58771463]
[1756955146633,0.2042835,852.42,850.9,0.58771463]
[1756955146836,0.2042835,852.42,850.91,0.58771463]
[1756955147033,0.2042835,852.42,850.92,0.58771463]
[1756955147238,0.2042835,852.42,850.93,0.58771463]
[1756955147539,0.2042835,852.42,850.94,0.58771463]
[1756955147737,0.2042835,852.42,850.95,0.58771463]
[1756955147937,0.2042835,852.42,850.96,0.58771463]
[1756955148134,0.2042835,852.42,850.97,0.58771463]
[1756955148334,0.2042835,852.42,850.98,0.58771463]
[1756955148639,0.2042835,852.42,850.99,0.58771463]
[1756955148834,0.2042835,852.42,850.46,0.79180145]
[1756955149038,0.2042835,852.42,850.47,1.30653883]
[1756955149234,0.2042835,852.42,850.48,1.30653883]
[1756955149439,0.2042835,852.42,850.49,1.30653883]
[1756955149641,0.2042835,852.42,850.46,0.79180145]
[1756955149642,0.2042835,852.42,850.5,1.30653883]
[1756955149840,0.2042835,852.42,850.51,1.30653883]
[1756955150136,0.2042835,852.42,850.52,1.30653883]
[1756955150439,0.2042835,852.42,850.53,1.30653883]
[1756955150637,0.2042835,852.42,850.54,1.30653883]
[1756955150942,0.2042835,852.42,850.55,1.30653883]
[1756955151240,0.2042835,852.42,850.56,1.30653883]
[1756955151441,0.2042835,852.42,850.57,1.30653883]
[1756955151637,0.2042835,852.42,850.58,1.30653883]
[1756955151838,0.2042835,852.42,850.41,0.79180145]
[1756955151839,0.2042835,852.42,850.59,1.30653883]
[1756955152142,0.2042835,852.42,850.6,1.30653883]
[1756955152338,0.2042835,852.42,850.61,1.30653883]
[1756955152546,0.2042835,852.42,850.62,1.30653883]
[1756955152741,0.2042835,852.42,850.63,1.30653883]
[1756955152942,0.2042835,852.42,850.64,1.30653883]
[1756955153237,0.2042835,852.42,850.65,1.30653883]
[1756955153443,0.2042835,852.42,850.66,1.30653883]
[1756955153742,0.2042835,852.42,850.67,1.30653883]
[1756955153942,0.2042835,852.42,850.68,1.30653883]
[1756955154142,0.2042835,852.42,850.69,1.30653883]
[1756955154438,0.2042835,852.42,850.7,1.30653883]
[1756955154741,0.2042835,852.42,850.71,1.30653883]
[1756955154938,0.2042835,852.42,850.72,1.30653883]
[1756955155141,0.2042835,852.42,850.73,1.30653883]
[1756955155339,0.2042835,852.42,850.74,1.30653883]
[1756955155539,0.2042835,852.42,850.75,1.30653883]
[1756955155741,0.2042835,852.42,850.76,1.30653883]
[1756955155938,0.2042835,852.42,850.77,1.30653883]
[1756955156143,0.2042835,852.42,850.78,1.30653883]
[1756955156442,0.2042835,852.42,850.79,1.30653883]
[1756955156643,0.2042835,852.42,850.8,1.30653883]
[1756955156838,0.2042835,852.42,850.81,1.30653883]
[1756955157138,0.2042835,852.42,850.82,1.30653883]
[1756955157344,0.2042835,852.42,850.83,1.30653883]
[1756955157643,0.2042835,852.42,850.84,1.30653883]
[1756955157840,0.2042835,852.42,850.85,1.30653883]
[1756955158044,0.2042835,852.42,850.86,0.58772079]
[1756955158338,0.2042835,852.42,850.87,0.58772079]
[1756955158543,0.2042835,852.42,850.88,0.58772079]
[1756955158738,0.2042835,852.42,850.89,0.58772079]
[1756955158942,0.2042835,852.42,850.9,0.58772079]
[1756955159142,0.2042835,852.42,850.91,0.58772063]
[1756955159340,0.2042835,852.42,850.92,0.58772063]
[1756955159642,0.2042835,852.42,850.93,0.58772063]
[1756955159842,0.2042835,852.42,850.94,0.58772063]
[1756955160040,0.2042835,852.42,850.95,0.58772063]
[1756955160245,0.2042835,852.42,850.96,0.58772063]
[1756955160540,0.2042835,852.42,850.97,0.58772063]
[1756955160738,0.2042835,852.42,850.98,0.58772063]
[1756955160941,0.2042835,852.42,850.99,0.58772063]
[1756955161140,0.2042835,852.42,851.0,0.58772063]
[1756955161344,0.2042835,852.42,850.41,0.79180145]
[1756955161542,0.2042835,852.42,850.42,1.30699286]
[1756955161747,0.2042835,852.42,850.43,1.30699286]
[1756955162045,0.2042835,852.42,850.44,1.30699286]
[1756955162240,0.2042835,852.42,850.45,1.30699286]
[1756955162445,0.2042835,852.42,850.46,1.30699286]
[1756955162645,0.2042835,852.42,850.47,1.30699286]
[1756955162843,0.2042835,852.42,850.48,1.30699286]
[1756955163144,0.2042835,852.42,850.49,1.30699286]
[1756955163446,0.2042835,852.42,850.5,1.30699286]
[1756955163645,2.620247,852.4,850.51,1.30699286]
[1756955163844,2.620247,852.4,850.52,1.30699286]
[1756955164045,2.620247,852.4,850.53,1.30699286]
[1756955164248,2.620247,852.38,850.54,1.30699286]
[1756955164450,2.620247,852.38,850.55,1.30699286]
[1756955164750,2.620247,852.4,850.56,1.30699286]
[1756955164950,2.620247,852.4,850.57,1.30699286]
[1756955165150,2.620247,852.37,850.58,1.30699286]
[1756955165350,2.620247,852.37,850.59,1.30699286]
[1756955165647,2.620247,852.37,850.6,1.30699286]
[1756955165850,2.620247,852.37,850.61,1.30699286]
[1756955166147,2.620247,852.37,850.62,1.30699286]
[1756955166351,2.620247,852.37,850.63,1.30699286]
[1756955166652,2.620247,852.37,850.64,1.30699286]
[1756955166850,2.620247,852.37,850.65,1.30699286]
[1756955167050,2.620247,852.37,850.66,1.30699286]
[1756955167250,2.620247,852.33,850.67,1.30699286]
[1756955167452,2.620247,852.33,850.68,1.30699286]
[1756955167649,2.620247,852.33,850.69,1.30699286]
[1756955167848,2.620247,852.29,850.7,0.58771998]
[1756955168052,2.620247,852.29,850.71,0.58771998]
[1756955168252,2.620247,852.3,850.72,0.58771998]
[1756955168552,2.620247,852.3,850.73,0.58771998]
[1756955168752,2.620247,852.3,850.74,0.58771998]
[1756955168952,2.620247,852.3,850.75,0.58771998]
[1756955169152,2.620247,852.3,850.76,0.58771998]
[1756955169448,2.620247,852.3,850.77,0.58771998]
[1756955169652,2.620247,852.3,850.78,0.58771998]
[1756955169849,2.620247,852.3,850.79,0.58771998]
[1756955170053,2.620247,852.3,850.8,0.58771998]
[1756955170349,2.620247,852.3,850.81,0.58771998]
[1756955170548,2.620247,852.3,850.82,0.58771998]
[1756955170755,2.620247,852.3,850.83,0.58771998]
[1756955170953,2.620247,852.36,850.84,0.58771998]
[1756955171150,2.620247,852.36,850.85,0.58771998]
[1756955171348,2.620247,852.36,850.86,0.58771998]
[1756955171554,0.2042835,852.42,850.46,0.79099567]
[1756955171849,0.2042835,852.42,850.47,1.30725718]
[1756955172054,0.2042835,852.42,850.48,1.30725718]
[1756955172249,0.2042835,852.42,850.49,1.30725718]
[1756955172453,0.2042835,852.42,850.5,1.30725718]
[1756955172654,0.2042835,852.42,850.51,1.30725718]
[1756955172850,0.2042835,852.42,850.52,1.30725718]
[1756955173153,0.2042835,852.42,850.53,1.30725718]
[1756955173351,0.2042835,852.42,850.54,1.30725718]
[1756955173552,0.2042835,852.42,850.55,1.30725718]
[1756955173751,0.2042835,852.42,850.56,1.30725718]
[1756955173950,0.2042835,852.42,850.57,1.30725718]
[1756955174255,2.620247,852.01,850.58,1.30725718]
[1756955174453,2.620247,852.01,850.59,1.30725718]
[1756955174653,2.620247,852.01,850.6,1.30725718]
[1756955174856,2.620247,852.01,850.61,1.30725718]
[1756955175055,2.620247,852.01,850.62,1.30725718]
[1756955175357,2.620247,852.01,850.63,1.30725718]
[1756955175556,2.620247,852.01,850.64,1.30725718]
[1756955175756,2.620247,852.01,850.65,1.30725718]
[1756955175953,2.620247,852.01,850.66,1.30725718]
[1756955176158,2.620247,852.01,850.67,1.30725718]
[1756955176356,2.620247,852.01,850.68,1.30725718]
[1756955176556,2.620247,852.01,850.69,1.30725718]
[1756955176762,0.2042835,852.42,850.7,1.30725718]
[1756955177065,0.2042835,852.42,850.71,1.30725718]
[1756955177262,0.2042835,852.42,850.72,1.30725718]
[1756955177461,0.2042835,852.42,850.73,1.30725718]
[1756955177665,0.2042835,852.42,850.74,1.30725718]
[1756955177865,0.2042835,852.42,850.75,1.30725718]
[1756955178062,0.2042835,852.42,850.76,0.58776118]
[1756955178266,0.2042835,852.42,850.77,0.58776118]
[1756955178566,0.2042835,852.42,850.78,0.58776118]
[1756955178767,0.2042835,852.42,850.79,0.58776118]
[1756955178967,0.2042835,852.42,850.8,0.58776118]
[1756955179170,0.2042835,852.42,850.81,0.58776118]
[1756955179368,0.2042835,852.42,850.82,0.58776118]
[1756955179569,0.2042835,852.42,850.83,0.58776118]
[1756955179874,0.2042835,852.42,850.84,0.58776118]
[1756955180169,0.2042835,852.42,850.85,0.58776118]
[1756955180468,0.2042835,852.42,850.86,0.58786151]
[1756955180768,0.2042835,852.42,850.16,0.79099567]
[1756955180968,0.2042835,852.42,850.17,1.30773268]
[1756955181163,0.2042835,852.42,850.18,1.30773268]
[1756955181368,0.2042835,852.42,850.19,2.09872835]
[1756955181569,0.2042835,852.42,850.2,1.30773268]
[1756955181764,2.620247,852.03,850.21,1.30773268]
[1756955181968,2.620247,852.03,850.22,1.30773268]
[1756955182165,2.620247,852.03,850.23,1.30773268]
[1756955182365,2.620247,851.99,850.24,1.30773268]
[1756955182570,2.620247,851.99,850.25,1.30773268]
[1756955182868,2.620247,851.99,850.26,1.30773268]
[1756955183066,2.620247,851.99,850.27,1.30773268]
[1756955183265,2.620247,851.99,850.28,1.30773268]
[1756955183465,2.620247,852.04,850.29,1.30773268]
[1756955183668,2.620247,852.04,850.3,1.30773268]
[1756955183869,2.620247,852.04,850.31,1.30773268]
[1756955184163,2.620247,852.04,850.32,1.30773268]
[1756955184362,2.620247,852.04,850.33,1.30773268]
[1756955184562,2.620247,852.05,850.34,1.30773268]
[1756955184767,2.620247,852.05,850.35,1.30773268]
[1756955184967,2.620247,851.97,850.36,1.30773268]
[1756955185167,2.620247,851.97,850.37,1.30773268]
[1756955185364,2.620247,851.97,850.38,0.58792748]
[1756955185567,2.620247,851.96,850.39,0.58792748]
[1756955185767,2.620247,851.96,850.4,0.58792748]
[1756955185966,2.620247,852.05,850.41,0.58792748]
[1756955186165,2.620247,852.05,850.42,0.58792748]
[1756955186364,2.620247,852.05,850.43,0.58792748]
[1756955186569,2.620247,852.13,850.44,0.58792748]
[1756955186770,2.620247,852.13,850.45,0.58792748]
[1756955186968,2.620247,852.13,850.46,0.58792748]
[1756955187172,2.620247,852.13,850.47,0.58792748]
[1756955187372,2.620247,852.13,850.48,0.58792748]
[1756955187570,2.620247,852.14,850.49,0.58792748]
[1756955187769,2.620247,852.14,850.5,0.58792748]
[1756955187973,2.620247,852.14,850.02,0.79099567]